bitfinex/quotes_BTCUSD_20250614
["timestamp","ask_amount","ask_price","bid_price","bid_amount"]
[1749890099133,0.8440054,104990.0,104980.0,0.59561915]
[1749890099341,0.34014299,104990.0,104980.0,0.59561915]
[1749890099542,0.8344815,104990.0,104980.0,0.59561915]
[1749890101793,0.84400549,104990.0,104980.0,0.61347208]
[1749890102475,0.8344815,104990.0,104980.0,0.61347208]
[1749890102678,0.8440054,104990.0,104980.0,0.61347208]
[1749890103104,0.8344815,104990.0,104980.0,0.61347208]
[1749890103521,0.8440054,104990.0,104980.0,0.61347208]
[1749890103929,0.8440054,104990.0,104980.0,0.59561915]
[1749890104154,0.8440054,104990.0,104980.0,0.61348256]
[1749890104804,0.8440054,104990.0,104980.0,0.59561915]
[1749890105770,0.8440054,104990.0,104980.0,0.61348256]
[1749890105989,0.85352948,104990.0,104980.0,0.59561915]
[1749890106202,0.85352939,104990.0,104980.0,0.59561915]
[1749890106620,0.85352939,104990.0,104980.0,0.61348256]
[1749890107388,0.91514563,104990.0,104980.0,0.61348256]
[1749890108001,0.90562164,104990.0,104980.0,0.61348256]
[1749890108203,0.90562164,104990.0,104980.0,0.59561915]
[1749890108375,0.91514572,104990.0,104980.0,0.61348256]
[1749890108580,0.91514572,104990.0,104980.0,0.59561915]
[1749890108781,0.91514572,104990.0,104980.0,0.61348256]
[1749890108993,0.90562164,104990.0,104980.0,0.61348256]
[1749890109230,0.91514563,104990.0,104980.0,0.59561915]
[1749890109456,0.91514563,104990.0,104980.0,0.61348259]
[1749890109888,0.91514563,104990.0,104980.0,0.61346427]
[1749890110093,0.9246698,104990.0,104980.0,0.59561915]
[1749890110316,0.35919088,104990.0,104980.0,0.61346427]
[1749890110520,0.92466971,104990.0,104980.0,0.61346427]
[1749890111771,0.34014299,104990.0,104980.0,0.55174536]
[1749890111971,0.89609774,104990.0,104980.0,0.55174534]
[1749890112594,0.89609774,104990.0,104980.0,0.53390024]
[1749890112807,0.89609774,104990.0,104980.0,0.55174533]
[1749890113221,0.89609774,104990.0,104980.0,0.53390024]
[1749890113432,0.00014299,104990.0,104980.0,1.16229808]
[1749890113892,0.00014299,104990.0,104980.0,1.18014183]
[1749890114106,0.00014299,104990.0,104980.0,1.18014156]
[1749890114537,0.00014299,104990.0,104980.0,1.18014098]
[1749890114773,0.00014299,104990.0,104980.0,1.18014101]
[1749890114991,0.00014299,104990.0,104980.0,1.18014054]
[1749890115214,0.00014299,104990.0,104980.0,1.19468104]
[1749890115450,0.00014299,104990.0,104980.0,1.13266354]
[1749890115693,0.00014299,104990.0,104980.0,1.13266347]
[1749890115927,0.00014299,104990.0,104980.0,1.13266335]
[1749890116144,0.00014299,104990.0,104980.0,1.13266342]
[1749890116548,0.00014299,104990.0,104980.0,1.13266341]
[1749890116798,0.00014299,104990.0,104980.0,1.11482167]
[1749890116998,0.00014299,104990.0,104980.0,1.13266328]
[1749890117658,0.00014299,104990.0,104980.0,1.13268161]
[1749890117864,0.00014299,104990.0,104980.0,1.1326816]
[1749890118066,0.00014299,104990.0,104980.0,1.11482167]
[1749890118471,0.00014299,104990.0,104980.0,0.95970167]
[1749890118673,0.00014299,104990.0,104980.0,1.11466167]
[1749890119089,0.00014299,104990.0,104980.0,1.13252162]
[1749890119264,0.00014299,104990.0,104980.0,1.11466167]
[1749890120688,0.00014299,104990.0,104980.0,0.95970167]
[1749890120903,0.00014299,104990.0,104980.0,1.11462167]
[1749890121314,0.00014299,104990.0,104980.0,0.95970167]
[1749890121517,0.00014299,104990.0,104980.0,0.62068418]
[1749890124906,0.00014299,104990.0,104980.0,1.11462167]
[1749890125957,0.00014299,104990.0,104980.0,0.62068418]
[1749890128082,0.71385215,105010.0,105000.0,0.21904651]
[1749890128287,0.70432971,105010.0,105000.0,0.51639552]
[1749890128726,0.70432971,105010.0,105000.0,0.51635552]
[1749890128950,0.71385215,105010.0,105000.0,0.36151552]
[1749890129174,0.71385215,105010.0,105000.0,0.51635552]
[1749890129385,0.71785215,105010.0,105000.0,0.51635552]
[1749890130220,0.72385215,105010.0,105000.0,0.51635552]
[1749890130434,0.71385215,105010.0,105000.0,0.51635552]
[1749890130662,0.71785215,105010.0,105000.0,0.51635552]
[1749890130868,0.71985215,105010.0,105000.0,0.51635552]
[1749890131074,0.71985215,105010.0,105000.0,0.47012827]
[1749890132225,0.71032971,105010.0,105000.0,0.47012827]
[1749890132636,0.37985215,105010.0,105000.0,0.47012827]
[1749890133042,0.37985215,105010.0,105000.0,0.48782827]
[1749890133244,0.39680403,105010.0,105000.0,0.48782827]
[1749890133464,0.38728159,105010.0,105000.0,0.48782827]
[1749890134164,0.05151848,105010.0,105000.0,0.48782827]
[1749890134389,0.04199613,105010.0,105000.0,0.54636297]
[1749890134613,0.03247396,105010.0,105000.0,0.54636297]
[1749890134825,0.04199622,105010.0,105000.0,0.54636297]
[1749890135829,0.04199622,105010.0,105000.0,0.56415708]
[1749890136083,0.04199613,105010.0,105000.0,0.56415708]
[1749890136704,0.04199613,105010.0,105000.0,0.56415701]
[1749890137330,0.59767594,105010.0,105000.0,0.54636297]
[1749890137537,0.59767594,105010.0,105000.0,0.56415701]
[1749890139206,0.59767594,105010.0,105000.0,0.54636297]
[1749890139613,0.59767594,105010.0,105000.0,0.56422304]
[1749890141331,0.57863169,105010.0,105000.0,0.54636297]
[1749890141532,0.58815377,105010.0,105000.0,0.56422304]
[1749890141816,0.58815377,105010.0,105000.0,0.56422302]
[1749890142013,0.58815377,105010.0,105000.0,0.54636297]
[1749890142471,0.58815377,105010.0,105000.0,0.56422302]
[1749890143211,0.57863169,105010.0,105000.0,0.56422302]
[1749890143435,0.58815377,105010.0,105000.0,0.56422302]
[1749890143649,0.58815377,105010.0,105000.0,0.48782827]
[1749890143861,0.58815377,105010.0,105000.0,0.50568832]
[1749890144342,0.59767594,105010.0,105000.0,0.5056882]
[1749890144719,0.59767594,105010.0,105000.0,0.50568157]
[1749890145084,0.60719829,105010.0,105000.0,0.50568157]
[1749890145286,0.6071982,105010.0,105000.0,0.50568157]
[1749890145496,0.6071982,105010.0,105000.0,0.60183079]
[1749890145719,0.6071982,105010.0,105000.0,0.58397749]
[1749890145956,0.6071982,105010.0,105000.0,0.60183079]
[1749890146164,0.6071982,105010.0,105000.0,0.58397749]
[1749890146371,0.6071982,105010.0,105000.0,0.60183079]
[1749890146578,0.6071982,105010.0,105000.0,0.58397749]
[1749890146780,0.6071982,105010.0,105000.0,0.60183079]
[1749890147640,0.59767594,105010.0,105000.0,0.60183079]
[1749890147918,0.60719829,105010.0,105000.0,0.60183079]
[1749890148365,0.59767612,105010.0,105000.0,0.60183079]
[1749890148602,0.59767603,105010.0,105000.0,0.58397749]
[1749890149126,0.58815377,105010.0,105000.0,0.60183079]
[1749890149560,0.57863169,105010.0,105000.0,0.58397749]
[1749890149962,0.02295188,105010.0,105000.0,0.61803067]
[1749890150161,0.57863169,105010.0,105000.0,0.61803032]
[1749890150518,0.02295188,105010.0,105000.0,0.61803028]
[1749890150649,0.02295188,105010.0,105000.0,0.61803025]
[1749890150869,0.02295188,105010.0,105000.0,0.61803007]
[1749890151093,0.02295188,105010.0,105000.0,0.61803008]
[1749890151299,0.006,105010.0,105000.0,0.6180301]
[1749890151487,0.006,105010.0,105000.0,0.60017749]
[1749890151683,0.006,105010.0,105000.0,0.6180301]
[1749890152135,0.006,105010.0,105000.0,0.60017749]
[1749890152462,0.006,105010.0,105000.0,0.6180301]
[1749890152665,0.006,105010.0,105000.0,0.60017749]
[1749890152790,0.006,105010.0,105000.0,0.61803006]
[1749890153210,0.006,105010.0,105000.0,0.60017749]
[1749890153451,0.006,105010.0,105000.0,0.61803005]
[1749890154075,0.006,105010.0,105000.0,0.60302977]
[1749890154279,0.006,105010.0,105000.0,0.60302971]
[1749890154495,0.006,105010.0,105000.0,0.61255288]
[1749890154714,0.006,105010.0,105000.0,0.61255283]
[1749890155348,0.006,105010.0,105000.0,0.59470066]
[1749890155486,0.006,105010.0,105000.0,0.61255283]
[1749890156133,0.006,105010.0,105000.0,1.16823264]
[1749890156355,0.006,105010.0,105000.0,0.59470066]
[1749890156946,0.006,105010.0,105000.0,0.61255283]
[1749890157428,0.006,105010.0,105000.0,0.59470066]
[1749890157637,0.006,105010.0,105000.0,0.61255943]
[1749890157863,0.006,105010.0,105000.0,0.59470066]
[1749890158072,0.006,105010.0,105000.0,0.61255943]
[1749890158366,0.006,105010.0,105000.0,0.59470066]
[1749890158573,0.006,105010.0,105000.0,0.61255943]
[1749890159394,0.006,105010.0,105000.0,0.59470066]
[1749890159594,0.006,105010.0,105000.0,0.61255943]
[1749890159849,0.006,105010.0,105000.0,0.61253535]
[1749890160046,0.006,105010.0,105000.0,0.51638613]
[1749890160432,0.006,105010.0,105000.0,0.49855144]
[1749890160659,0.001,105010.0,105000.0,0.51638612]
[1749890160867,0.001,105010.0,105000.0,1.08660678]
[1749890161090,0.001,105010.0,105000.0,1.08660537]
[1749890161295,0.001,105010.0,105000.0,1.18275456]
[1749890161435,0.001,105010.0,105000.0,1.18275423]
[1749890161812,0.0447,105020.0,105010.0,0.21902565]
[1749890162022,0.0447,105020.0,105010.0,0.91997979]
[1749890162283,0.0447,105020.0,105010.0,0.93452024]
[1749890162519,0.0447,105020.0,105010.0,0.96934871]
[1749890162959,0.0447,105020.0,105010.0,0.96934789]
[1749890163165,0.0447,105020.0,105010.0,0.96934744]
[1749890163373,0.0447,105020.0,105010.0,0.95151664]
[1749890163607,0.0447,105020.0,105010.0,0.9693473]
[1749890164047,0.0447,105020.0,105010.0,0.95151664]
[1749890164289,0.0447,105020.0,105010.0,0.98834723]
[1749890164668,0.0447,105020.0,105010.0,1.01355561]
[1749890164820,0.0447,105020.0,105010.0,1.02155558]
[1749890165829,0.0447,105020.0,105010.0,0.97551664]
[1749890166071,0.0447,105020.0,105010.0,0.99334698]
[1749890166281,0.0447,105020.0,105010.0,0.97551664]
[1749890166444,0.0447,105020.0,105010.0,0.99334672]
[1749890166650,0.0447,105020.0,105010.0,0.99334669]
[1749890167040,0.0447,105020.0,105010.0,0.97551664]
[1749890167246,0.0447,105020.0,105010.0,0.99334669]
[1749890167783,0.0447,105020.0,105010.0,0.99334668]
[1749890167985,0.0447,105020.0,105010.0,0.97551664]
[1749890168190,0.0447,105020.0,105010.0,0.99334662]
[1749890168499,0.0447,105020.0,105010.0,0.99334661]
[1749890168732,0.0447,105020.0,105010.0,0.99334658]
[1749890168898,0.0447,105020.0,105010.0,0.97551664]
[1749890169103,0.0447,105020.0,105010.0,0.99334658]
[1749890169303,0.0447,105020.0,105010.0,1.02224821]
[1749890169480,0.0447,105020.0,105010.0,1.00441828]
[1749890169929,0.0447,105020.0,105010.0,1.02224737]
[1749890170127,0.0447,105020.0,105010.0,1.02224735]
[1749890170951,0.0447,105020.0,105010.0,1.00441828]
[1749890171197,0.0447,105020.0,105010.0,1.02224735]
[1749890171399,0.0447,105020.0,105010.0,1.41224724]
[1749890171604,0.0447,105020.0,105010.0,1.41224671]
[1749890171847,0.0447,105020.0,105010.0,1.41893237]
[1749890172061,0.0447,105020.0,105010.0,1.41224671]
[1749890172262,0.0447,105020.0,105010.0,1.39441828]
[1749890172401,0.0447,105020.0,105010.0,1.37841828]
[1749890172637,0.0447,105020.0,105010.0,1.37041828]
[1749890172795,0.0447,105020.0,105010.0,1.38841828]
[1749890172996,0.0447,105020.0,105010.0,1.41624646]
[1749890173197,0.0447,105020.0,105010.0,1.35405036]
[1749890173412,0.0447,105020.0,105010.0,1.33622218]
[1749890174318,0.0447,105020.0,105010.0,1.35405035]
[1749890174534,0.0447,105020.0,105010.0,1.33622218]
[1749890174761,0.0447,105020.0,105010.0,1.35407442]
[1749890175179,0.0447,105020.0,105010.0,1.50875442]
[1749890175376,0.0447,105020.0,105010.0,1.49090218]
[1749890175600,0.0447,105020.0,105010.0,1.50861863]
[1749890176202,0.0447,105020.0,105010.0,1.35393863]
[1749890176454,0.0447,105020.0,105010.0,1.54841863]
[1749890176881,0.0447,105020.0,105010.0,1.5484186]
[1749890177115,0.0447,105020.0,105010.0,1.5984186]
[1749890177528,0.0447,105020.0,105010.0,1.68531594]
[1749890178041,0.0447,105020.0,105010.0,1.70303178]
[1749890178266,0.0447,105020.0,105010.0,1.70303176]
[1749890178522,0.0447,105020.0,105010.0,1.70303171]
[1749890178745,0.0447,105020.0,105010.0,1.68531594]
[1749890181043,0.0447,105020.0,105010.0,1.19183223]
[1749890181307,0.0447,105020.0,105010.0,1.68559594]
[1749890186185,0.0447,105020.0,105010.0,1.49083594]
[1749890186445,0.0447,105020.0,105010.0,1.68563594]
[1749890193330,0.0447,105020.0,105010.0,1.67132828]
[1749890196374,0.0447,105020.0,105010.0,1.76649479]
[1749890202527,0.0397,105020.0,105010.0,1.76649479]
[1749890205418,0.0397,105020.0,105010.0,1.78434646]
[1749890205629,0.0397,105020.0,105010.0,2.33954927]
[1749890205826,0.0397,105020.0,105010.0,1.78434646]
[1749890206028,0.0397,105020.0,105010.0,1.76649479]
[1749890206262,0.0397,105020.0,105010.0,1.78434646]
[1749890206457,0.0397,105020.0,105010.0,1.76649479]
[1749890206687,0.0397,105020.0,105010.0,1.78434646]
[1749890206876,0.0397,105020.0,105010.0,1.76649479]
[1749890207084,0.0397,105020.0,105010.0,1.78434646]
[1749890208090,0.0397,105020.0,105010.0,1.78434645]
[1749890208465,0.0397,105020.0,105010.0,1.78434646]
[1749890209305,0.0397,105020.0,105010.0,1.76649479]
[1749890209822,0.0397,105020.0,105010.0,2.33954927]
[1749890210371,0.0397,105020.0,105010.0,2.33954926]
[1749890210846,0.0397,105020.0,105010.0,2.3395486]
[1749890211044,0.00918566,105020.0,105010.0,2.33954386]
[1749890211243,0.00918566,105020.0,105010.0,2.33954341]
[1749890211458,0.00918566,105020.0,105010.0,2.32169325]
[1749890211677,0.00918566,105020.0,105010.0,2.33954337]
[1749890211946,0.0303,105050.0,105040.0,0.2189631]
[1749890212183,0.03044329,105050.0,105040.0,1.06942269]
[1749890212417,0.03044329,105050.0,105040.0,1.08727281]
[1749890212656,0.03044329,105050.0,105040.0,1.06942269]
[1749890212868,0.03044329,105050.0,105040.0,1.12656143]
[1749890213086,0.03044329,105050.0,105040.0,1.10874308]
[1749890213333,0.03044329,105050.0,105040.0,1.12656143]
[1749890213538,0.03044329,105050.0,105040.0,1.11474308]
[1749890213949,0.03044329,105050.0,105040.0,1.09324104]
[1749890214367,0.03044329,105050.0,105040.0,1.09324091]
[1749890214821,0.03044329,105050.0,105040.0,1.09324088]
[1749890215044,0.03044329,105050.0,105040.0,1.1077817]
[1749890215755,0.03044329,105050.0,105040.0,1.08996354]
[1749890215976,0.03044329,105050.0,105040.0,1.1057817]
[1749890216426,0.03044329,105050.0,105040.0,1.1077817]
[1749890216640,0.03044329,105050.0,105040.0,1.1187817]
[1749890217066,0.03044329,105050.0,105040.0,1.13962161]
[1749890217281,0.03044329,105050.0,105040.0,1.1187817]
[1749890218111,0.03044329,105050.0,105040.0,1.10096354]
[1749890218316,0.03044329,105050.0,105040.0,1.1187817]
[1749890218518,0.03044329,105050.0,105040.0,1.10096354]
[1749890218743,0.03044329,105050.0,105040.0,1.1187817]
[1749890219634,0.03044329,105050.0,105040.0,1.10096354]
[1749890219860,0.03044329,105050.0,105040.0,1.1187817]
[1749890220773,0.03044329,105050.0,105040.0,1.15839095]
[1749890220994,0.03044329,105050.0,105040.0,1.10096354]
[1749890221213,0.03044329,105050.0,105040.0,1.1187817]
[1749890221653,0.03044329,105050.0,105040.0,0.56357889]
[1749890221870,0.03044329,105050.0,105040.0,1.1187817]
[1749890222321,0.03044329,105050.0,105040.0,1.10096354]
[1749890222526,0.03044329,105050.0,105040.0,0.90194852]
[1749890222734,0.03044329,105050.0,105040.0,1.07436653]
[1749890222938,0.03044329,105050.0,105040.0,1.05654852]
[1749890223139,0.03044329,105050.0,105040.0,1.07436653]
[1749890223140,0.01524329,105050.0,105040.0,1.07436653]
[1749890223351,0.01524329,105050.0,105040.0,1.05654852]
[1749890223579,0.03114329,105050.0,105040.0,1.17054751]
[1749890225050,0.03114329,105050.0,105040.0,1.15269774]
[1749890225277,0.03114329,105050.0,105040.0,1.17054751]
[1749890225503,0.03114329,105050.0,105040.0,1.17050751]
[1749890225733,0.03114329,105050.0,105040.0,1.15265774]
[1749890225970,0.03114329,105050.0,105040.0,1.17050751]
[1749890226180,0.03114329,105050.0,105040.0,1.15265774]
[1749890226417,0.03114329,105050.0,105040.0,1.17050751]
[1749890227052,0.03114329,105050.0,105040.0,1.15265774]
[1749890227394,0.03114329,105050.0,105040.0,1.17050751]
[1749890227589,0.03114329,105050.0,105040.0,1.15265774]
[1749890227809,0.03114329,105050.0,105040.0,1.17050751]
[1749890228026,0.01524329,105050.0,105040.0,1.17050751]
[1749890228872,0.00014329,105050.0,105040.0,1.17050751]
[1749890229279,0.01654329,105050.0,105040.0,0.6153047]
[1749890229485,0.01654329,105050.0,105040.0,1.17050751]
[1749890229693,0.00014329,105050.0,105040.0,1.17050751]
[1749890229915,0.00014329,105050.0,105040.0,1.20200751]
[1749890230122,0.00014329,105050.0,105040.0,1.27812431]
[1749890230759,0.00014329,105050.0,105040.0,1.27812398]
[1749890231155,0.00014329,105050.0,105040.0,1.27812397]
[1749890231845,0.00014329,105050.0,105040.0,1.27808701]
[1749890232051,0.00014329,105050.0,105040.0,1.2602756]
[1749890232266,0.00014329,105050.0,105040.0,1.27808689]
[1749890232478,0.00014329,105050.0,105040.0,1.2602756]
[1749890232697,0.00014329,105050.0,105040.0,1.27808689]
[1749890232908,0.00014329,105050.0,105040.0,1.2602756]
[1749890233116,0.00014329,105050.0,105040.0,1.29589818]
[1749890233587,0.00014329,105050.0,105040.0,1.27808689]
[1749890234223,0.00014329,105050.0,105040.0,1.29589818]
[1749890234688,0.00014329,105050.0,105040.0,1.27808689]
[1749890234880,0.00014329,105050.0,105040.0,1.29589818]
[1749890235569,0.00014329,105050.0,105040.0,1.27808689]
[1749890235778,0.00014329,105050.0,105040.0,1.29589818]
[1749890235994,0.00014329,105050.0,105040.0,1.27808689]
[1749890236432,0.00014329,105050.0,105040.0,1.29589818]
[1749890236638,0.00014329,105050.0,105040.0,1.29589808]
[1749890237076,0.00014329,105050.0,105040.0,1.29589793]
[1749890237287,0.00014329,105050.0,105040.0,1.29589789]
[1749890237503,0.00014329,105050.0,105040.0,1.27808689]
[1749890237913,0.00014329,105050.0,105040.0,1.29589789]
[1749890238546,0.00014329,105050.0,105040.0,1.27808689]
[1749890238801,0.00014329,105050.0,105040.0,1.29589789]
[1749890239022,0.00014329,105050.0,105040.0,1.27808689]
[1749890239233,0.00014329,105050.0,105040.0,1.29589789]
[1749890239885,0.00014329,105050.0,105040.0,1.27808689]
[1749890240112,0.00014329,105050.0,105040.0,1.29589789]
[1749890240559,0.00014329,105050.0,105040.0,1.27808689]
[1749890240796,0.00014329,105050.0,105040.0,1.29589833]
[1749890241270,0.00014329,105050.0,105040.0,1.29589843]
[1749890241603,0.00014329,105050.0,105040.0,0.74069562]
[1749890241807,0.00014329,105050.0,105040.0,1.29713689]
[1749890242011,0.00014329,105050.0,105040.0,1.29589843]
[1749890242271,0.00014329,105050.0,105040.0,1.29589831]
[1749890242447,0.00014329,105050.0,105040.0,1.295935]
[1749890242707,0.00014329,105050.0,105040.0,1.29593501]
[1749890243137,0.00014329,105050.0,105040.0,1.27808689]
[1749890243567,0.00014329,105050.0,105040.0,1.29593501]
[1749890244040,0.00014329,105050.0,105040.0,1.29593457]
[1749890244259,0.00014329,105050.0,105040.0,1.32451551]
[1749890244476,0.00014329,105050.0,105040.0,1.30666789]
[1749890244700,0.00014329,105050.0,105040.0,0.76931268]
[1749890244914,0.00014329,105050.0,105040.0,1.32451549]
[1749890245119,0.00014329,105050.0,105040.0,1.32451593]
[1749890245325,0.00014329,105050.0,105040.0,1.30666789]
[1749890245737,0.00014329,105050.0,105040.0,1.32451603]
[1749890245945,0.00014329,105050.0,105040.0,1.30666789]
[1749890246357,0.00014329,105050.0,105040.0,1.32451603]
[1749890246630,0.00014329,105050.0,105040.0,1.30666789]
[1749890246828,0.00014329,105050.0,105040.0,1.32451603]
[1749890247031,0.00014329,105050.0,105040.0,1.30666789]
[1749890247244,0.55520281,105070.0,105060.0,0.20940277]
[1749890247451,0.45393452,105080.0,105070.0,0.21890059]
[1749890247704,1.01913051,105080.0,105070.0,0.46970235]
[1749890247894,1.01913051,105080.0,105070.0,0.48755049]
[1749890248119,1.00961468,105080.0,105070.0,0.48755049]
[1749890248330,0.37879393,105080.0,105070.0,0.58369967]
[1749890248553,0.59399674,105080.0,105070.0,0.58369967]
[1749890248994,0.59399674,105080.0,105070.0,0.56585157]
[1749890249293,0.59399674,105080.0,105070.0,0.58369938]
[1749890249727,0.59399674,105080.0,105070.0,0.58369912]
[1749890249948,0.03879393,105080.0,105070.0,0.58369887]
[1749890250161,0.05389393,105080.0,105070.0,0.58369887]
[1749890250376,0.06619393,105080.0,105070.0,0.56585157]
[1749890251001,0.02787735,105080.0,105070.0,1.13890165]
[1749890251211,0.01557735,105080.0,105070.0,1.13890164]
[1749890251423,0.01557735,105080.0,105070.0,0.58369858]
[1749890251632,0.01557735,105080.0,105070.0,0.56585157]
[1749890251847,0.01557735,105080.0,105070.0,1.13890097]
[1749890252263,0.01557735,105080.0,105070.0,1.13890086]
[1749890252467,0.01557735,105080.0,105070.0,1.13890082]
[1749890253308,0.01557735,105080.0,105070.0,1.12105438]
[1749890253558,0.01557735,105080.0,105070.0,1.13890082]
[1749890253791,0.01557735,105080.0,105070.0,1.1388634]
[1749890254110,0.01557735,105080.0,105070.0,1.12105438]
[1749890254255,0.01557735,105080.0,105070.0,1.1388632]
[1749890254482,0.01557735,105080.0,105070.0,1.12105438]
[1749890254706,0.01557735,105080.0,105070.0,1.13886318]
[1749890255816,0.01557735,105080.0,105070.0,1.12105438]
[1749890256035,0.01557735,105080.0,105070.0,1.13886318]
[1749890256482,0.00047735,105080.0,105070.0,0.62929994]
[1749890256691,0.00047735,105080.0,105070.0,1.16669523]
[1749890256910,0.00047735,105080.0,105070.0,1.18450203]
[1749890257148,0.00047735,105080.0,105070.0,1.18450176]
[1749890257380,0.00047735,105080.0,105070.0,1.16669523]
[1749890257625,0.00047735,105080.0,105070.0,1.53550176]
[1749890257921,0.00047735,105080.0,105070.0,1.61961927]
[1749890258131,0.00047735,105080.0,105070.0,1.64819251]
[1749890258572,0.00047735,105080.0,105070.0,1.64819224]
[1749890259005,0.00047735,105080.0,105070.0,1.6481921]
[1749890259462,0.00047735,105080.0,105070.0,1.58596163]
[1749890259683,0.00047735,105080.0,105070.0,1.56815657]
[1749890259904,0.00047735,105080.0,105070.0,1.58596163]
[1749890260325,0.00047735,105080.0,105070.0,1.56815657]
[1749890262600,0.00047735,105080.0,105070.0,1.49203871]
[1749890262803,0.00047735,105080.0,105070.0,0.99902642]
[1749890263014,0.00047735,105080.0,105070.0,1.49203871]
[1749890265295,0.00047735,105080.0,105070.0,1.33751871]
[1749890265512,0.00047735,105080.0,105070.0,1.49227871]
[1749890266364,0.00047735,105080.0,105070.0,1.52086951]
[1749890267797,0.00047735,105080.0,105070.0,1.36610951]
[1749890267919,0.00047735,105080.0,105070.0,1.52082951]
[1749890268121,0.00047735,105080.0,105070.0,1.36610951]
[1749890268334,0.00047735,105080.0,105070.0,1.52082951]
[1749890270987,0.01404356,105100.0,105090.0,0.21885892]
[1749890271201,0.0264799,105100.0,105090.0,0.50456925]
[1749890272271,0.0264799,105100.0,105090.0,0.50656925]
[1749890272487,0.0264799,105100.0,105090.0,0.50856925]
[1749890274575,0.0141799,105100.0,105090.0,0.50856925]
[1749890275197,0.00013634,105100.0,105090.0,0.52396925]
[1749890277899,0.00013634,105100.0,105090.0,0.54172682]
[1749890279215,0.00013634,105100.0,105090.0,0.52396925]
[1749890279704,0.00013634,105100.0,105090.0,0.54172682]
[1749890280296,0.00013634,105100.0,105090.0,0.52396925]
[1749890280775,0.00013634,105100.0,105090.0,0.54172682]
[1749890281333,0.00013634,105100.0,105090.0,1.09635117]
[1749890281534,0.00013634,105100.0,105090.0,1.0785936]
[1749890281741,0.00013634,105100.0,105090.0,1.09635117]
[1749890282750,0.00013634,105100.0,105090.0,1.0785936]
[1749890282996,0.00013634,105100.0,105090.0,1.09635117]
[1749890283528,0.00013634,105100.0,105090.0,1.09635115]
[1749890283725,0.00013634,105100.0,105090.0,1.09643616]
[1749890284354,0.00013634,105100.0,105090.0,1.0785936]
[1749890284621,0.00013634,105100.0,105090.0,1.09643616]
[1749890284808,0.00013634,105100.0,105090.0,1.0785936]
[1749890285013,0.00013634,105100.0,105090.0,1.09643616]
[1749890285828,0.00013634,105100.0,105090.0,1.0785936]
[1749890286224,0.00013634,105100.0,105090.0,0.54181181]
[1749890286649,0.00013634,105100.0,105090.0,0.54180856]
[1749890287060,0.00013634,105100.0,105090.0,0.52396925]
[1749890287266,0.00013634,105100.0,105090.0,0.54180856]
[1749890287695,0.00013634,105100.0,105090.0,0.52396925]
[1749890287906,0.00013634,105100.0,105090.0,0.54180856]
[1749890290052,0.00013634,105100.0,105090.0,0.52396925]
[1749890290274,0.00013634,105100.0,105090.0,0.54180856]
[1749890293119,0.00013634,105100.0,105090.0,0.55820856]
[1749890294196,0.00013634,105100.0,105090.0,0.54036925]
[1749890294403,0.00013634,105100.0,105090.0,0.55820856]
[1749890294822,0.00013634,105100.0,105090.0,0.54036925]
[1749890295243,0.00013634,105100.0,105090.0,0.55820856]
[1749890295464,0.00013634,105100.0,105090.0,1.1128329]
[1749890295814,0.00013634,105100.0,105090.0,1.11283291]
[1749890296440,0.00013634,105100.0,105090.0,1.0949936]
[1749890296644,0.00013634,105100.0,105090.0,1.11283291]
[1749890297303,0.00013634,105100.0,105090.0,0.55820856]
[1749890297513,0.00013634,105100.0,105090.0,0.52396925]
[1749890297714,0.00013634,105100.0,105090.0,0.54180855]
[1749890297935,0.00013634,105100.0,105090.0,0.52396925]
[1749890298158,0.00013634,105100.0,105090.0,0.54180855]
[1749890298386,0.00013634,105100.0,105090.0,0.52396925]
[1749890298635,0.00013634,105100.0,105090.0,0.54180855]
[1749890299098,0.00013634,105100.0,105090.0,0.52396925]
[1749890299320,0.00013634,105100.0,105090.0,0.54180855]
[1749890300699,0.00013634,105100.0,105090.0,0.54181181]
[1749890301353,0.00013634,105100.0,105090.0,0.52396925]
[1749890301791,0.00013634,105100.0,105090.0,0.54181181]
[1749890302672,0.00013634,105100.0,105090.0,0.54181108]
[1749890303170,0.00013634,105100.0,105090.0,0.52396925]
[1749890303398,0.00013634,105100.0,105090.0,0.54181108]
[1749890303629,0.00013634,105100.0,105090.0,0.5069825]
[1749890303851,0.00013634,105100.0,105090.0,0.48914068]
[1749890304080,0.00013634,105100.0,105090.0,0.50698248]
[1749890304325,0.00013634,105100.0,105090.0,0.48914068]
[1749890304563,0.00013634,105100.0,105090.0,0.50698248]
[1749890305326,0.00013634,105100.0,105090.0,0.48914068]
[1749890305565,0.00013634,105100.0,105090.0,0.50698248]
[1749890306841,0.00013634,105100.0,105090.0,0.48914068]
[1749890307049,0.00013634,105100.0,105090.0,0.50698248]
[1749890307900,0.55476069,105100.0,105090.0,0.50698248]
[1749890308142,0.55476069,105100.0,105090.0,0.48914068]
[1749890308600,0.55476069,105100.0,105090.0,0.50698248]
[1749890309286,0.55476069,105100.0,105090.0,0.35234248]
[1749890309518,0.55476069,105100.0,105090.0,0.48906068]
[1749890309759,0.55476069,105100.0,105090.0,0.50690248]
[1749890310458,0.55476069,105100.0,105090.0,0.48906068]
[1749890310687,0.55476069,105100.0,105090.0,0.50690248]
[1749890312302,0.55476069,105100.0,105090.0,0.48906068]
[1749890312544,0.55476069,105100.0,105090.0,0.50690248]
[1749890316370,0.55476069,105100.0,105090.0,0.48906068]
[1749890316593,0.55476069,105100.0,105090.0,0.5231032]
[1749890317461,0.55476069,105100.0,105090.0,0.52310233]
[1749890317589,0.55476069,105100.0,105090.0,0.50526068]
[1749890317793,0.55476069,105100.0,105090.0,0.52310233]
[1749890318402,0.55476069,105100.0,105090.0,0.50526068]
[1749890318619,0.55476069,105100.0,105090.0,0.52310233]
[1749890319031,0.55476069,105100.0,105090.0,0.50526068]
[1749890319464,0.55476069,105100.0,105090.0,0.33450068]
[1749890319685,0.5940748,105100.0,105090.0,0.49134241]
[1749890319901,0.5940748,105100.0,105090.0,0.23118623]
[1749890319902,0.8129128,105100.0,105090.0,0.23118623]
[1749890320126,0.62261785,105100.0,105090.0,0.4046167]
[1749890320350,0.62261785,105100.0,105090.0,0.40461761]
[1749890320562,0.62261785,105100.0,105090.0,0.23237412]
[1749890320781,0.62261785,105100.0,105090.0,0.40461764]
[1749890320782,0.6321325,105100.0,105090.0,0.40461764]
[1749890320994,0.6321325,105100.0,105090.0,0.25021764]
[1749890321204,0.62261785,105100.0,105090.0,0.40461764]
[1749890321431,0.62261785,105100.0,105090.0,0.38677412]
[1749890321641,0.62261785,105100.0,105090.0,0.40461794]
[1749890321870,0.61310329,105100.0,105090.0,0.25021794]
[1749890322163,0.62261776,105100.0,105090.0,0.40461794]
[1749890322335,0.62261776,105100.0,105090.0,0.40461788]
[1749890322336,0.62261767,105100.0,105090.0,0.40461788]
[1749890322738,0.62261767,105100.0,105090.0,0.25021787]
[1749890322964,0.00013634,105100.0,105090.0,0.57730446]
[1749890323174,0.00013634,105100.0,105090.0,0.57730329]
[1749890323385,0.00013634,105100.0,105090.0,0.57730301]